bitfinex/quotes_ETHUSD_20250110
["timestamp","ask_amount","ask_price","bid_price","bid_amount"]
[1736492230569,6.09652567,3285.0,3284.3,0.05724678]
[1736492230998,6.09652567,3285.0,3284.2,0.037947]
[1736492230999,3.04346,3285.8,3284.5,0.0075]
[1736492231211,3.0433,3285.9,3284.4,0.8059]
[1736492231212,2.26555697,3285.1,3284.6,0.218]
[1736492231410,2.26555697,3285.1,3284.6,0.27506165]
[1736492231411,3.04441,3284.8,3284.6,0.27506165]
[1736492231721,0.304441,3284.7,3284.6,0.218]
[1736492232311,3.348851,3284.7,3284.6,0.218]
[1736492233016,3.04461,3284.5,3284.2,0.218]
[1736492233174,5.31016697,3284.5,3284.1,0.218]
[1736492233375,5.87162777,3284.5,3284.1,0.218]
[1736492233679,0.304441,3284.7,3284.2,0.0075]
[1736492233888,2.26555697,3284.8,3284.2,0.0075]
[1736492234087,3.04423,3284.9,3284.3,0.8091]
[1736492234290,5.30996697,3284.8,3284.2,0.0075]
[1736492234489,3.04463,3284.5,3284.3,0.05706165]
[1736492234705,3.04469,3284.4,3284.3,0.05706165]
[1736492235017,3.04459,3284.6,3284.4,0.05625705]
[1736492235213,3.349089,3284.5,3284.1,0.218]
[1736492235718,3.349089,3284.5,3284.2,0.05625705]
[1736492236016,3.349089,3284.5,3284.1,0.218]
[1736492236017,3.84876,3284.4,3283.9,0.218]
[1736492236309,3.84876,3284.4,3283.9,0.216]
[1736492236526,4.4906376,3284.4,3284.0,0.05625705]
[1736492236694,1.4458776,3284.4,3283.9,0.216]
[1736492236879,1.4458776,3284.4,3284.1,0.05625705]
[1736492237078,1.4458776,3284.4,3283.9,0.216]
[1736492237478,0.6418776,3284.4,3284.2,0.05625705]
[1736492237715,0.304459,3284.5,3283.9,0.216]
[1736492237921,3.7737,3284.7,3284.0,0.04544875]
[1736492238276,5.30989697,3284.8,3284.1,0.8214]
[1736492238788,2.26555697,3284.8,3284.2,0.05629535]
[1736492239088,3.04451,3284.6,3284.2,0.05629535]
[1736492239289,2.26555697,3284.8,3284.1,0.8214]
[1736492239490,5.61841267,3284.8,3284.3,0.05629535]
[1736492239696,3.04441,3284.7,3284.1,0.8214]
[1736492239907,3.04441,3284.7,3284.4,0.05629535]
[1736492240218,3.04441,3284.7,3284.1,0.8214]
[1736492240580,3.04441,3284.7,3284.2,0.05629535]
[1736492241810,2.57406267,3284.8,3284.2,0.05629535]
[1736492242579,3.0,3285.1,3284.3,0.842]
[1736492242806,3.04409,3285.1,3284.4,0.015]
[1736492243322,0.1664315,3285.5,3284.4,0.015]
[1736492243481,0.1664315,3285.5,3284.8,0.0075]
[1736492243699,0.1664315,3285.5,3285.0,0.015]
[1736492244045,0.1664315,3285.5,3285.1,0.7618]
[1736492244339,0.1664315,3285.5,3285.1,0.7598]
[1736492244644,5.47567847,3285.5,3285.2,0.05587412]
[1736492244837,3.04386,3285.3,3285.2,0.05587412]
[1736492245039,3.80976,3285.3,3284.8,0.218]
[1736492245241,5.30963697,3285.1,3284.8,0.218]
[1736492245442,5.30963697,3285.1,3284.9,0.05334269]
[1736492245608,3.04414,3285.0,3284.9,0.05334269]
[1736492245809,3.5751097,3285.0,3284.9,0.05334269]
[1736492246139,3.5751097,3285.0,3284.5,0.218]
[1736492246140,0.5309697,3285.0,3284.5,0.218]
[1736492246352,3.04414,3285.0,3284.5,0.218]
[1736492246859,2.26555697,3285.1,3284.6,0.0075]
[1736492247065,2.81312482,3285.4,3284.6,0.04544307]
[1736492247342,2.26555697,3285.4,3284.8,0.0075]
[1736492247515,0.1664315,3285.5,3284.8,0.04544057]
[1736492247718,0.1664315,3285.5,3285.0,0.0075]
[1736492248103,0.1664315,3285.5,3285.1,0.05350843]
[1736492248344,0.1664315,3285.5,3285.0,0.0075]
[1736492248548,2.26555697,3285.4,3285.2,0.05350843]
[1736492248710,2.26555697,3285.4,3285.0,0.0075]
[1736492249044,2.26555697,3285.4,3284.3,5.31]
[1736492249208,2.26555697,3285.4,3284.7,0.0075]
[1736492249407,2.26555697,3285.4,3284.7,0.015]
[1736492251948,5.9112277,3285.4,3284.7,0.015]
[1736492253510,5.9112277,3285.4,3284.8,0.05340006]
[1736492253846,3.64567073,3285.4,3284.8,0.05340006]
[1736492254051,0.60189073,3285.4,3284.8,0.05340006]
[1736492255005,0.60189073,3285.4,3284.9,0.28272087]
[1736492255125,0.1664315,3285.5,3285.0,0.0075]
[1736492255458,3.2101215,3285.5,3285.0,0.0075]
[1736492255627,3.2101215,3285.5,3285.1,0.05294113]
[1736492255963,0.32101215,3285.4,3285.0,0.0075]
[1736492256162,0.1664315,3285.5,3285.0,0.0075]
[1736492256508,0.1664315,3285.5,3285.1,0.05294113]
[1736492257147,0.1664315,3285.5,3285.2,0.0075]
[1736492257531,0.1664315,3285.5,3285.3,0.05294113]
[1736492257770,0.1664315,3285.5,3285.4,0.7728]
[1736492258258,0.1664315,3285.5,3285.4,0.82574113]
[1736492259248,0.1664315,3285.5,3285.4,0.05294113]
[1736492259449,0.1664315,3285.5,3285.3,0.218]
[1736492259620,0.1664315,3285.5,3285.2,0.2255]
[1736492259821,0.1664315,3285.5,3285.4,0.05294113]
[1736492260152,0.1664315,3285.5,3285.2,0.2255]
[1736492260348,0.1664315,3285.5,3285.4,0.05294113]
[1736492260512,0.1664315,3285.5,3285.2,0.2255]
[1736492260717,0.1664315,3285.5,3285.4,0.05294113]
[1736492260919,0.1664315,3285.5,3285.2,0.2255]
[1736492261119,0.1664315,3285.5,3285.4,0.05294113]
[1736492261320,0.1664315,3285.5,3285.2,0.2255]
[1736492261520,0.1664315,3285.5,3285.4,0.05294113]
[1736492261721,0.1664315,3285.5,3285.2,0.2255]
[1736492261958,0.1664315,3285.5,3285.4,0.05294113]
[1736492262132,0.1664315,3285.5,3285.2,0.2255]
[1736492262331,0.1664315,3285.5,3285.2,0.218]
[1736492262568,3.2101115,3285.5,3285.3,0.05294113]
[1736492262760,3.75767835,3285.5,3285.2,0.218]
[1736492262958,3.75767835,3285.5,3285.4,0.05294113]
[1736492263253,3.75767835,3285.5,3285.2,0.218]
[1736492263657,3.75767835,3285.5,3285.3,0.05294113]
[1736492264094,0.1664315,3285.5,3285.2,0.218]
[1736492264880,0.1664315,3285.5,3285.3,0.05294113]
[1736492265271,0.1664315,3285.5,3285.2,0.218]
[1736492265762,0.1664315,3285.5,3285.3,0.05294113]
[1736492265957,0.1664315,3285.5,3285.2,0.218]
[1736492266797,0.1664315,3285.5,3285.3,0.05294113]
[1736492267198,0.1664315,3285.5,3285.2,0.218]
[1736492267602,0.1664315,3285.5,3285.3,0.05294113]
[1736492267896,0.1664315,3285.5,3285.2,0.218]
[1736492268109,0.1664315,3285.5,3285.4,0.05294113]
[1736492268403,0.1664315,3285.5,3285.2,0.218]
[1736492268595,0.1664315,3285.5,3285.3,0.7611]
[1736492268808,0.1664315,3285.5,3285.3,0.81393283]
[1736492270520,0.1664315,3285.5,3285.4,0.0225]
[1736492271145,0.1664315,3285.5,3285.4,0.07489309]
[1736492271493,0.1664315,3285.5,3285.4,0.52727761]
[1736492271908,0.1664315,3285.5,3285.4,4.54191916]
[1736492273113,0.1664315,3285.5,3285.4,9.80747613]
[1736492274204,0.1664315,3285.5,3285.4,15.11747613]
[1736492274567,0.1664315,3285.5,3285.4,15.66747613]
[1736492274756,0.1664315,3285.5,3285.4,15.21509161]
[1736492275047,5.88920048,3287.0,3285.9,0.7849]
[1736492275254,5.88920048,3287.0,3286.0,0.62332]
[1736492275406,5.88920048,3287.0,3286.0,0.67532448]
[1736492277960,5.88920048,3287.0,3286.2,0.0225]
[1736492278248,2.84691048,3287.0,3286.2,0.05292638]
[1736492278650,2.84691048,3287.0,3286.4,0.0225]
[1736492279058,5.30835697,3286.5,3285.8,0.7703]
[1736492279266,2.26555697,3286.5,3285.8,0.218]
[1736492279567,0.7676,3286.7,3285.8,0.218]
[1736492279568,3.04294,3286.3,3285.8,0.218]
[1736492279769,3.04275,3286.5,3285.8,0.218]
[1736492279923,3.04293,3286.3,3285.8,0.218]
[1736492280421,3.80974,3286.2,3285.8,0.218]
[1736492282346,3.04318,3286.1,3285.8,0.218]
[1736492282938,0.7667,3286.2,3285.8,0.218]
[1736492283145,3.03225697,3286.2,3285.5,0.7703]
[1736492283306,3.04351,3285.7,3285.3,0.218]
[1736492283922,3.04321,3286.0,3285.3,0.218]
[1736492284120,0.3032257,3286.1,3285.3,0.218]
[1736492284121,3.0434,3285.8,3285.3,0.218]
[1736492285944,3.04321,3286.0,3285.3,0.218]
[1736492286150,3.04335,3285.9,3285.3,0.218]
[1736492286351,3.04313,3286.1,3285.4,0.0225]
[1736492289328,3.04322,3286.0,3285.4,0.0225]
[1736492289747,0.6075387,3286.1,3285.2,0.7954]
[1736492289926,3.04353,3285.7,3285.3,0.218]
[1736492290526,3.04353,3285.7,3285.2,0.7954]
[1736492290729,3.04307,3286.2,3285.3,0.218]
[1736492290928,3.04331,3285.9,3285.4,0.84476923]
[1736492291140,3.04331,3285.9,3285.4,0.8016]
[1736492291328,3.04331,3285.9,3285.4,0.84476923]
[1736492291534,9.11674697,3286.4,3285.4,0.84476923]
[1736492291743,3.0432,3286.1,3285.4,0.84476923]
[1736492291929,0.9116747,3286.3,3285.4,0.8016]
[1736492292135,3.04325,3286.0,3285.4,0.8016]
[1736492292566,3.04325,3286.0,3285.5,0.04316923]
[1736492293971,0.9116747,3286.3,3285.5,0.04316923]
[1736492294132,3.04341,3285.8,3285.4,0.8016]
[1736492294333,3.04341,3285.8,3285.6,0.04332813]
[1736492294552,3.04341,3285.8,3285.4,0.8016]
[1736492294851,3.04341,3285.8,3285.7,0.04332813]
[1736492295056,3.0435,3285.7,3285.3,0.218]
[1736492297894,0.8083,3286.0,3284.9,0.8287]
[1736492298091,3.04361,3285.6,3285.0,0.218]
[1736492298248,3.04361,3285.6,3285.0,0.26132813]
[1736492298588,0.8083,3286.0,3285.0,0.26132813]
[1736492298798,3.04342,3285.8,3285.2,0.8287]
[1736492299091,3.85153,3286.0,3285.3,0.05293722]
[1736492299301,3.0434,3285.8,3285.3,0.0225]
[1736492299605,3.0434,3285.8,3285.4,0.04332813]
[1736492301687,3.0434,3285.8,3285.5,0.218]
[1736492302388,3.0434,3285.8,3285.6,0.04332813]
[1736492302584,3.0434,3285.8,3285.5,0.218]
[1736492302769,3.0434,3285.8,3285.7,0.04332813]
[1736492303174,3.0434,3285.8,3285.5,0.218]
[1736492303369,3.0434,3285.8,3285.7,0.04332813]
[1736492303576,3.0434,3285.8,3285.5,0.218]
[1736492303893,0.8083,3286.0,3285.5,0.218]
[1736492304188,3.04358,3285.6,3285.5,0.218]
[1736492307194,3.04377,3285.4,3284.9,0.7511]
[1736492307355,3.06525697,3285.5,3284.9,0.7511]
[1736492307560,3.06525697,3285.5,3284.9,0.218]
[1736492307561,3.04415,3285.0,3284.9,0.218]
[1736492308718,2.26555697,3285.2,3284.7,0.218]
[1736492309007,3.04426,3284.9,3284.7,0.218]
[1736492320595,3.04426,3284.9,3284.8,0.04424985]
[1736492320790,3.04426,3284.9,3284.7,0.218]
[1736492320991,3.04426,3284.9,3284.8,0.04424985]
[1736492321197,3.04426,3284.9,3284.7,0.218]
[1736492321523,3.04426,3284.9,3284.8,0.04424985]
[1736492321887,3.04426,3284.9,3284.7,0.218]
[1736492322229,3.04426,3284.9,3284.8,0.04424985]
[1736492322432,3.04426,3284.9,3284.7,0.218]
[1736492322600,3.04426,3284.9,3284.8,0.04424985]
[1736492322824,3.04426,3284.9,3284.7,0.218]
[1736492323386,3.04426,3284.9,3284.2,0.015]
[1736492323387,3.04469,3284.5,3284.2,0.218]
[1736492323586,2.26555697,3284.6,3284.2,0.218]
[1736492323921,3.04478,3284.3,3284.2,0.218]
[1736492324437,3.04478,3284.3,3283.4,4.268]
[1736492324438,0.7645,3284.2,3283.0,0.767]
[1736492324737,3.04503,3284.1,3283.7,0.767]
[1736492324884,3.04481,3284.3,3283.8,0.0075]
[1736492325102,3.04442,3284.7,3283.8,0.05295108]
[1736492325334,3.04442,3284.7,3283.8,0.0225]
[1736492325909,3.0446,3284.5,3283.8,0.0225]
[1736492326727,3.0447,3284.4,3283.8,0.0225]
[1736492327141,2.26555697,3284.3,3283.9,0.218]
[1736492327285,3.8631,3284.5,3283.9,0.218]
[1736492327490,3.8631,3284.5,3283.8,0.015]
[1736492327726,3.8631,3284.5,3283.9,0.218]
[1736492328092,2.26555697,3284.6,3283.9,0.218]
[1736492328287,3.04444,3284.7,3284.1,0.8231]
[1736492328936,3.04444,3284.7,3284.2,0.04099301]
[1736492329815,0.7684,3284.8,3284.2,0.04099301]
[1736492329816,3.04471,3284.4,3284.2,0.04099301]
[1736492330144,3.04471,3284.4,3283.9,0.218]
[1736492330363,3.04478,3284.3,3283.9,0.218]
[1736492330843,3.04501,3284.1,3284.0,0.04099301]
[1736492331025,3.04501,3284.1,3283.9,0.218]
[1736492331596,0.7875,3284.3,3283.9,0.218]
[1736492331799,3.83231,3284.3,3283.9,0.218]
[1736492333309,0.7875,3284.3,3283.9,0.218]
[1736492333505,0.55,3284.6,3283.9,0.218]
[1736492333831,3.04478,3284.3,3283.9,0.218]
[1736492334031,3.04491,3284.2,3283.9,0.218]
[1736492334446,3.04472,3284.4,3283.9,0.218]
[1736492334809,3.49792599,3284.6,3283.9,0.218]
[1736492335009,3.04479,3284.3,3283.9,0.218]
[1736492337319,0.8315,3284.7,3283.9,0.218]
[1736492337528,3.0446,3284.6,3284.0,0.04113296]
[1736492337717,3.0446,3284.6,3284.1,0.7636]
[1736492339042,3.0446,3284.6,3284.2,0.04113296]
[1736492340638,3.0446,3284.6,3284.1,0.7636]
[1736492340863,0.8118,3285.0,3284.3,0.04113296]
[1736492341057,3.04433,3284.8,3284.2,0.015]
[1736492341206,3.04397,3285.2,3284.4,0.05613296]
[1736492341530,3.04397,3285.2,3284.4,0.015]
[1736492341727,3.04397,3285.2,3284.5,0.04113296]
[1736492341945,0.763,3285.6,3284.8,0.0075]
[1736492342240,0.763,3285.6,3284.9,0.218]
[1736492342241,3.80661,3285.6,3284.9,0.218]
[1736492342418,3.80661,3285.6,3284.9,0.25882128]
[1736492342616,3.0437,3285.5,3284.9,0.25882128]
[1736492343406,3.04377,3285.4,3284.9,0.25882128]
[1736492343805,0.55,3285.5,3284.9,0.25882128]
[1736492344033,0.55,3285.5,3284.9,0.218]
[1736492344034,3.04414,3285.0,3284.9,0.218]
[1736492346213,3.86754,3285.0,3284.9,0.218]
[1736492346736,6.13309697,3285.0,3284.9,0.218]
[1736492347106,6.13309697,3285.0,3284.0,0.7927]
[1736492347107,3.04452,3284.6,3284.2,0.218]
[1736492347649,3.85869,3284.4,3284.3,0.03731705]
[1736492347864,3.04481,3284.3,3283.8,0.7625]
[1736492348151,3.04481,3284.3,3283.9,0.218]
[1736492348511,3.04505,3284.1,3283.9,0.218]
[1736492352440,0.814,3284.6,3283.9,0.218]
[1736492352643,3.04474,3284.4,3283.9,0.218]
[1736492354077,3.04474,3284.4,3284.0,0.8069824]
[1736492354459,0.814,3284.6,3284.0,0.8069824]
[1736492354659,3.04452,3284.6,3284.0,0.8069824]
[1736492354892,3.04452,3284.6,3284.1,0.0075]
[1736492355097,3.04403,3285.2,3284.2,0.7695]
[1736492355098,3.04433,3284.8,3284.2,0.7695]
[1736492355297,3.04433,3284.8,3284.2,0.80714142]
[1736492355721,3.04444,3284.7,3284.2,0.80714142]
[1736492356572,3.04384,3285.4,3284.5,0.0225]
[1736492356778,3.04384,3285.4,3284.7,0.015]
[1736492357100,3.04384,3285.4,3284.8,0.25601658]
[1736492358027,3.04384,3285.4,3284.9,0.792]
[1736492358521,3.04384,3285.4,3285.0,0.03801658]
[1736492358867,3.83269,3285.8,3285.0,0.03801658]
[1736492358868,3.04394,3285.3,3285.0,0.03801658]
[1736492359070,3.04394,3285.3,3284.9,0.792]
[1736492360292,3.04398,3285.2,3284.9,0.792]
[1736492361042,3.04377,3285.4,3284.9,0.792]
[1736492361825,3.04387,3285.3,3284.9,0.792]
[1736492364192,3.04387,3285.3,3285.0,0.03801658]
[1736492368545,3.04396,3285.2,3285.0,0.03801658]
[1736492372375,3.04404,3285.1,3285.0,0.03801658]
[1736492372731,3.04415,3285.0,3284.8,0.218]
[1736492373729,3.84637,3285.5,3284.8,0.218]
[1736492373730,3.04403,3285.2,3284.8,0.218]
[1736492373923,3.04414,3285.0,3284.8,0.218]
[1736492374381,3.04432,3284.8,3284.7,0.218]
[1736492374684,3.04432,3284.8,3284.6,0.218]
[1736492374989,3.04432,3284.8,3284.7,0.03728525]
[1736492375344,3.04443,3284.7,3284.5,0.218]
[1736492375552,0.8002,3285.1,3284.5,0.218]
[1736492375828,0.8002,3285.1,3284.4,0.8169]
[1736492375829,3.04429,3284.9,3284.6,0.03728525]
[1736492376163,3.0446,3284.5,3283.9,0.0225]
[1736492376497,3.0446,3284.5,3284.3,0.218]
[1736492378820,3.04469,3284.4,3284.3,0.218]
[1736492380792,3.0448,3284.3,3283.8,0.8244]
[1736492380996,3.0448,3284.3,3283.9,0.218]
[1736492381293,3.0448,3284.3,3283.9,0.25578759]
[1736492381583,3.04497,3284.2,3283.9,0.25578759]
[1736492382000,0.8313,3284.1,3283.8,0.218]
[1736492382184,3.04515,3283.9,3283.8,0.218]
[1736492383789,3.04515,3283.9,3283.6,1.0314]
[1736492384669,3.09685697,3284.1,3283.5,0.218]
[1736492384670,3.04533,3283.8,3283.5,0.218]
[1736492385599,3.09685697,3284.1,3283.5,0.218]
[1736492385600,3.04507,3284.0,3283.5,0.218]
[1736492386362,3.04507,3284.0,3283.6,0.218]
[1736492387258,3.04489,3284.2,3283.6,0.218]
[1736492387460,3.04497,3284.1,3283.6,0.218]
[1736492388460,3.04507,3284.0,3283.6,0.218]
[1736492389600,3.0449,3284.2,3283.6,0.218]
[1736492389806,3.0449,3284.2,3283.7,0.7569]
[1736492392079,3.04497,3284.1,3283.7,0.7569]
[1736492397210,3.04497,3284.1,3283.8,0.03832193]
[1736492397742,3.04497,3284.1,3283.7,0.7569]
[1736492398242,3.04497,3284.1,3283.8,0.03832829]
[1736492398614,3.04497,3284.1,3283.7,0.7569]
[1736492399142,3.04497,3284.1,3283.8,0.03832829]
[1736492399454,7.63555697,3284.7,3283.8,0.03832829]
[1736492399455,3.04478,3284.4,3283.8,0.03832829]
[1736492399623,3.04478,3284.4,3283.7,0.7569]
[1736492399822,6.1906,3284.7,3283.7,0.7569]
[1736492400040,3.04463,3284.5,3283.8,0.03705068]
[1736492400645,3.04463,3284.5,3283.9,0.8226]
[1736492401031,3.04441,3284.7,3284.0,0.015]
[1736492401233,0.8287,3285.4,3284.3,0.8226]
[1736492401447,1.215945,3285.4,3284.7,0.8226]
[1736492401651,0.8287,3285.4,3284.7,0.8226]
[1736492401872,3.04387,3285.3,3284.7,0.8226]
[1736492402993,0.60202036,3285.9,3284.8,0.0075]
[1736492402994,3.87223,3285.7,3284.8,0.0075]
[1736492403200,5.37,3286.4,3284.9,0.8226]
[1736492403322,3.0435,3285.7,3284.9,0.8226]
[1736492403637,3.04312,3286.1,3284.9,0.8226]
[1736492403638,3.04377,3285.4,3284.9,0.8226]
[1736492403845,3.04358,3285.6,3284.9,0.8226]
[1736492404184,3.79421,3285.8,3284.9,0.8226]
[1736492405421,3.04341,3285.8,3284.9,0.8226]
[1736492406907,0.823,3286.0,3285.1,0.75]
[1736492407115,0.7579,3285.5,3284.8,0.7667]
[1736492407294,2.26555697,3285.3,3284.6,0.218]
[1736492407510,3.04442,3284.7,3283.9,0.7667]
[1736492407819,3.04442,3284.7,3284.2,0.218]
[1736492408020,3.04442,3284.7,3284.0,0.015]
[1736492408181,3.04442,3284.7,3284.1,0.218]
[1736492410392,0.7579,3284.9,3284.1,0.218]
[1736492410593,1.3646547,3284.9,3284.1,0.218]
[1736492411332,3.0446,3284.5,3284.1,0.218]
[1736492411838,2.26555697,3284.7,3284.1,0.218]
[1736492411839,3.04488,3284.2,3284.1,0.218]
[1736492412005,3.04511,3284.0,3283.8,0.03705068]
[1736492413668,2.26555697,3284.1,3283.8,0.03705068]
[1736492413787,3.04515,3283.9,3283.8,0.03705068]
[1736492414238,6.04515,3283.9,3283.8,0.03705068]
[1736492414408,6.85935,3283.9,3283.8,0.03705068]
[1736492414732,7.7718407,3283.9,3283.8,0.03705068]
[1736492414936,8.3218407,3283.9,3283.8,0.03705068]
[1736492415229,6.04515,3283.9,3283.8,0.03705068]
[1736492415735,3.04515,3283.9,3283.8,0.03705068]
[1736492416333,0.8308,3284.2,3283.8,0.03705068]
[1736492416334,3.04498,3284.1,3283.8,0.03705068]
[1736492416640,3.0,3284.2,3283.8,0.03705068]
[1736492417423,3.0,3284.2,3283.7,0.8008]
[1736492417602,3.04443,3284.7,3284.0,0.015]
[1736492417801,6.1224,3284.9,3284.0,0.015]
[1736492418018,3.04452,3284.6,3284.0,0.015]
[1736492418217,3.04452,3284.6,3284.1,0.03245231]
[1736492418614,6.04434,3284.8,3284.2,0.827]
[1736492418814,3.04434,3284.8,3284.2,0.827]
[1736492419228,3.04434,3284.8,3284.3,0.03218511]
[1736492419430,3.04434,3284.8,3284.4,0.218]
[1736492421739,5.37,3284.9,3284.4,0.218]
[1736492422578,5.37,3284.9,3284.5,0.03218511]
[1736492423022,3.04405,3285.1,3284.4,0.218]
[1736492423353,5.30960697,3285.1,3284.4,0.218]
[1736492423546,5.30960697,3285.1,3284.5,0.03218511]
[1736492426037,5.30960697,3285.1,3284.6,0.8272]
[1736492426726,5.30960697,3285.1,3284.7,0.03218511]
[1736492426920,3.0,3285.4,3284.7,0.03218511]
[1736492427133,3.0,3285.4,3284.8,0.7852]
[1736492427335,0.8143,3285.8,3284.9,0.04618654]
[1736492427549,3.0434,3285.8,3284.9,0.04618654]
[1736492427754,3.0434,3285.8,3285.0,0.7852]
[1736492427958,3.0434,3285.8,3285.1,0.0075]
[1736492428255,3.04349,3285.7,3285.2,0.218]
[1736492428619,3.04349,3285.7,3285.3,0.03118654]
[1736492429060,3.04349,3285.7,3285.2,0.218]
[1736492429359,3.04349,3285.7,3285.3,0.03118654]
[1736492429518,5.30875697,3286.1,3285.4,0.7862]
[1736492429717,3.04323,3286.0,3285.4,0.7862]
[1736492429926,3.04323,3286.0,3285.5,0.03118654]
[1736492431271,3.04334,3285.9,3285.5,0.03118654]
[1736492431557,2.26555697,3285.8,3285.5,0.03118654]
[1736492431721,3.04358,3285.6,3285.5,0.03118654]
[1736492431915,3.04383,3285.4,3285.2,0.218]
[1736492434517,5.26555697,3285.5,3284.7,0.7842]
[1736492434856,3.04432,3284.8,3284.6,0.218]
[1736492435041,3.04448,3284.7,3284.4,0.7842]
[1736492435915,3.04451,3284.6,3284.4,0.7842]
[1736492437280,3.04451,3284.6,3284.3,0.218]
[1736492437556,0.7793,3285.2,3284.3,0.218]
[1736492437557,3.04431,3284.9,3284.3,0.218]
[1736492437915,3.04431,3284.9,3284.4,0.02994413]
[1736492438122,3.0445,3284.7,3284.4,0.02994413]
[1736492438348,3.0445,3284.7,3284.3,0.218]
[1736492439385,3.04487,3284.3,3284.0,0.218]
[1736492439666,3.04497,3284.1,3284.0,0.218]
[1736492440029,3.0451,3284.0,3283.8,0.218]
[1736492440232,3.04522,3283.9,3283.6,0.218]
[1736492441075,3.04522,3283.9,3283.7,0.02920661]
[1736492441287,3.04522,3283.9,3283.6,0.218]
[1736492441438,3.04522,3283.9,3283.8,0.02935284]
[1736492441637,3.04522,3283.9,3283.6,0.218]
[1736492441941,3.04522,3283.9,3283.7,0.02935284]
[1736492442145,3.04522,3283.9,3283.6,0.218]
[1736492442385,3.04522,3283.9,3283.8,0.02935284]
[1736492442584,3.04522,3283.9,3283.6,0.218]
[1736492442967,3.04522,3283.9,3283.7,0.02935284]
[1736492443331,3.04522,3283.9,3283.6,0.218]
[1736492443537,3.04522,3283.9,3283.8,0.02935284]
[1736492443761,2.99522,3283.9,3283.6,0.218]
[1736492444138,2.99522,3283.9,3283.7,0.02935284]
[1736492444476,2.99522,3283.9,3283.6,0.218]
[1736492444770,2.99522,3283.9,3283.8,0.02935284]
[1736492444928,2.99522,3283.9,3283.6,0.218]
[1736492445131,2.99522,3283.9,3283.8,0.02935284]
[1736492445354,2.99522,3283.9,3283.6,0.218]
[1736492445745,2.99522,3283.9,3283.7,0.02935284]
[1736492445941,2.99522,3283.9,3283.6,0.218]
[1736492446284,2.99522,3283.9,3283.7,0.03015381]
[1736492446490,2.99522,3283.9,3283.6,0.218]
[1736492446633,3.04545,3283.6,3283.3,0.218]
[1736492447864,3.04545,3283.6,3283.2,0.218]
[1736492448238,2.26555697,3283.8,3283.0,0.8129]
[1736492448576,3.04571,3283.3,3283.1,0.218]
[1736492448778,5.31108697,3283.5,3283.1,0.218]
[1736492449366,5.31108697,3283.5,3283.2,0.03041455]
[1736492451391,2.26555697,3283.5,3283.2,0.03041455]
[1736492451540,3.04562,3283.4,3283.2,0.03041455]
[1736492454893,3.83951,3283.3,3283.2,0.03041455]
[1736492455179,3.83951,3283.3,3282.9,0.218]
[1736492455345,3.83951,3283.3,3283.2,0.03041455]
[1736492455699,3.04591,3283.1,3282.9,0.218]
[1736492457497,0.7938,3283.3,3282.9,0.218]
[1736492458083,3.04564,3283.4,3282.9,0.218]
[1736492458383,2.26555697,3283.8,3283.0,0.85591455]
[1736492458833,2.26555697,3283.8,3283.0,0.8255]
[1736492459033,2.26555697,3283.8,3283.1,0.03095518]
[1736492459603,3.04534,3283.7,3283.1,0.03095518]
[1736492460186,2.26555697,3283.8,3283.1,0.03095518]
[1736492460698,2.26555697,3283.8,3283.0,0.85595713]
[1736492460935,2.26555697,3283.8,3283.2,0.03095518]
[1736492461138,2.26555697,3284.1,3283.2,3.8621]
[1736492461286,8.41488,3284.2,3283.4,0.0225]
[1736492461287,5.37,3284.2,3283.4,0.0225]
[1736492461799,5.31054697,3284.1,3283.5,0.03103151]
[1736492461985,2.26555697,3283.7,3283.5,0.03103151]
[1736492462183,2.26555697,3283.7,3283.3,0.7938]
[1736492462385,2.26555697,3284.0,3283.3,0.7938]
[1736492463017,2.26555697,3284.0,3283.4,0.03094246]
[1736492463616,3.8324,3283.5,3283.4,0.03094246]
[1736492463826,3.04562,3283.4,3282.9,0.218]
[1736492464029,2.26555697,3283.0,3282.9,0.218]
[1736492464401,5.31154697,3283.0,3282.9,0.218]
[1736492464605,5.31154697,3283.0,3282.4,0.7577]
[1736492464827,2.26555697,3282.7,3282.5,0.218]
[1736492465000,2.26555697,3282.7,3282.5,0.24653839]
[1736492465199,2.26555697,3282.7,3282.4,0.218]
[1736492466739,0.8324,3282.9,3282.4,0.218]
[1736492466940,5.31155697,3283.0,3282.5,0.02853839]
[1736492467195,5.31191697,3282.6,3282.5,0.02853839]
[1736492467372,9.67931697,3282.6,3282.5,0.02853839]
[1736492467699,6.63295697,3282.6,3281.4,1.04217245]
[1736492467899,3.04659,3282.4,3281.5,0.015]
[1736492468062,3.04659,3282.4,3281.6,0.7937]
[1736492468240,3.04664,3282.3,3281.6,0.7937]
[1736492468742,3.04688,3282.1,3281.6,1.0117]
[1736492468986,3.04665,3282.3,3281.6,1.0117]
[1736492469434,2.26555697,3282.5,3281.6,1.0117]
[1736492469632,3.04683,3282.1,3281.6,1.0117]
[1736492470473,3.04683,3282.1,3281.6,0.7937]
[1736492470677,2.26555697,3282.5,3281.6,0.7937]
[1736492470985,3.04676,3282.2,3281.6,0.7937]
[1736492471631,3.04685,3282.1,3281.6,0.7937]
[1736492473531,3.04685,3282.1,3280.9,0.61741918]
[1736492473532,0.7787,3282.0,3281.2,0.7935]
[1736492473742,2.26555697,3281.9,3281.3,0.218]
[1736492473892,3.04724,3281.7,3281.2,0.7935]
[1736492474076,0.7787,3282.0,3281.2,0.7935]
[1736492474272,5.37,3282.1,3281.3,0.015]
[1736492474528,5.37,3282.1,3281.4,0.7935]
[1736492475174,5.37,3282.1,3281.5,0.02996604]
[1736492476225,5.37,3282.1,3281.6,0.218]
[1736492476729,5.37,3282.1,3281.7,0.02996604]